[Event "Live Chess"]
[Site "Chess.com"]
[Date "2023.05.21"]
[Round "-"]
[White "KeithArkell"]
[Black "Bill0007"]
[Result "1-0"]
[WhiteElo "2477"]
[BlackElo "1477"]
[TimeControl "300"]
[EndTime "7:29:58 PDT"]
[Termination "KeithArkell won by resignation"]

1. d4 {[%clk 0:04:57.9]} 1... d5 {[%clk 0:04:57.2]} 2. Nf3 {[%clk 0:04:56.4]}
2... Nf6 {[%clk 0:04:55.1]} 3. c4 {[%clk 0:04:55]} 3... e6 {[%clk 0:04:53]} 4.
cxd5 {[%clk 0:04:53.2]} 4... exd5 {[%clk 0:04:51]} 5. Nc3 {[%clk 0:04:52.4]}
5... c6 {[%clk 0:04:44.2]} 6. Qc2 {[%clk 0:04:50.5]} 6... g6 {[%clk 0:04:37.5]}
7. Bg5 {[%clk 0:04:47.9]} 7... Bf5 {[%clk 0:04:34.5]} 8. Qb3 {[%clk 0:04:46.6]}
8... Be7 {[%clk 0:04:17.1]} 9. Qxb7 {[%clk 0:04:41.7]} 9... Nbd7 {[%clk
0:04:07.7]} 10. Bxf6 {[%clk 0:04:40]} 10... Bxf6 {[%clk 0:04:02]} 11. Qxc6
{[%clk 0:04:38.8]} 11... O-O {[%clk 0:03:56.2]} 12. e3 {[%clk 0:04:33.1]} 12...
Nb6 {[%clk 0:03:46.8]} 13. Qb5 {[%clk 0:04:21.6]} 13... Rb8 {[%clk 0:03:26.5]}
14. Qa5 {[%clk 0:04:14.3]} 14... Qe7 {[%clk 0:03:09.8]} 15. b3 {[%clk
0:04:05.2]} 15... Rfd8 {[%clk 0:03:00.6]} 16. Be2 {[%clk 0:04:04.3]} 16... Rbc8
{[%clk 0:02:53.7]} 17. O-O {[%clk 0:04:01.3]} 17... Bg7 {[%clk 0:02:36.5]} 18.
Rac1 {[%clk 0:03:52.9]} 18... Be4 {[%clk 0:02:14.1]} 19. Nxe4 {[%clk 0:03:48.7]}
19... dxe4 {[%clk 0:02:09.4]} 20. Nd2 {[%clk 0:03:47.2]} 20... Nd5 {[%clk
0:02:01.7]} 21. Rxc8 {[%clk 0:03:43.2]} 21... Rxc8 {[%clk 0:01:57.6]} 22. Qxd5
{[%clk 0:03:41.8]} 1-0

[Event "Live Chess"]
[Site "Chess.com"]
[Date "2023.05.21"]
[Round "-"]
[White "MarkLim1"]
[Black "Ra2orLeaf"]
[Result "1-0"]
[WhiteElo "1706"]
[BlackElo "1143"]
[TimeControl "300"]
[EndTime "7:30:01 PDT"]
[Termination "MarkLim1 won on time"]

1. e4 {[%clk 0:04:59.4]} 1... c5 {[%clk 0:04:58.4]} 2. Nf3 {[%clk 0:04:58.6]}
2... Nc6 {[%clk 0:04:56.4]} 3. Bb5 {[%clk 0:04:57.5]} 3... a6 {[%clk 0:04:55.1]}
4. Bxc6 {[%clk 0:04:55.7]} 4... bxc6 {[%clk 0:04:55]} 5. O-O {[%clk 0:04:52.7]}
5... d5 {[%clk 0:04:54.1]} 6. e5 {[%clk 0:04:51.5]} 6... Bg4 {[%clk 0:04:50.9]}
7. c4 {[%clk 0:04:50.3]} 7... e6 {[%clk 0:04:49.7]} 8. d4 {[%clk 0:04:47.4]}
8... cxd4 {[%clk 0:04:37.8]} 9. Qxd4 {[%clk 0:04:45.5]} 9... Bxf3 {[%clk
0:04:36.9]} 10. gxf3 {[%clk 0:04:44.7]} 10... c5 {[%clk 0:04:28.4]} 11. Qd3
{[%clk 0:04:40.9]} 11... Ne7 {[%clk 0:04:24.2]} 12. Bf4 {[%clk 0:04:38.6]} 12...
Nc6 {[%clk 0:04:12.4]} 13. Nc3 {[%clk 0:04:35.9]} 13... Nb4 {[%clk 0:03:58.6]}
14. Qd2 {[%clk 0:04:29.3]} 14... d4 {[%clk 0:03:52.1]} 15. Ne4 {[%clk
0:04:26.4]} 15... Be7 {[%clk 0:03:36.3]} 16. a3 {[%clk 0:04:24.4]} 16... Nc6
{[%clk 0:03:31.1]} 17. Rfd1 {[%clk 0:04:22.9]} 17... O-O {[%clk 0:03:20.4]} 18.
Rab1 {[%clk 0:04:20.3]} 18... h6 {[%clk 0:03:19.3]} 19. b4 {[%clk 0:04:17.7]}
19... cxb4 {[%clk 0:03:05.6]} 20. axb4 {[%clk 0:04:16.3]} 20... Rb8 {[%clk
0:02:49.3]} 21. c5 {[%clk 0:04:09.9]} 21... a5 {[%clk 0:01:57]} 22. b5 {[%clk
0:04:06]} 22... Na7 {[%clk 0:01:32.6]} 23. Nd6 {[%clk 0:03:55.4]} 23... Bxd6
{[%clk 0:01:21.5]} 24. exd6 {[%clk 0:03:48.4]} 24... Nxb5 {[%clk 0:01:18.8]} 25.
Ra1 {[%clk 0:03:39.8]} 25... Rc8 {[%clk 0:01:02.1]} 26. Rxa5 {[%clk 0:03:28.9]}
26... Rxc5 {[%clk 0:00:59.2]} 27. Qb4 {[%clk 0:03:19]} 27... Qb6 {[%clk
0:00:45.7]} 28. Rxd4 {[%clk 0:03:09.7]} 28... Rfc8 {[%clk 0:00:19.7]} 29. d7
{[%clk 0:03:03.7]} 29... Rc1+ {[%clk 0:00:17.8]} 30. Bxc1 {[%clk 0:03:01.1]}
30... Rxc1+ {[%clk 0:00:16.9]} 31. Kg2 {[%clk 0:03:00]} 31... Qxd4 {[%clk
0:00:04.6]} 32. Qxd4 {[%clk 0:02:56.4]} 32... Nxd4 {[%clk 0:00:02.7]} 33. d8=Q+
{[%clk 0:02:55.6]} 33... Kh7 {[%clk 0:00:01.5]} 34. Qxd4 {[%clk 0:02:54.5]}
34... f6 {[%clk 0:00:00.3]} 35. Qe4+ {[%clk 0:02:51.9]} 1-0

[Event "Live Chess"]
[Site "Chess.com"]
[Date "2023.05.21"]
[Round "-"]
[White "LL220284LL"]
[Black "whatnot126"]
[Result "1-0"]
[WhiteElo "2240"]
[BlackElo "2053"]
[TimeControl "300"]
[EndTime "7:30:09 PDT"]
[Termination "LL220284LL won by resignation"]

1. e4 {[%clk 0:04:58.1]} 1... d6 {[%clk 0:04:59.3]} 2. d4 {[%clk 0:04:57]} 2...
Nf6 {[%clk 0:04:57.4]} 3. Nc3 {[%clk 0:04:55.4]} 3... g6 {[%clk 0:04:56.9]} 4.
g3 {[%clk 0:04:55.3]} 4... Bg7 {[%clk 0:04:54.5]} 5. Bg2 {[%clk 0:04:55.2]} 5...
O-O {[%clk 0:04:53.3]} 6. Nge2 {[%clk 0:04:54.7]} 6... c6 {[%clk 0:04:46.8]} 7.
O-O {[%clk 0:04:53.3]} 7... Nbd7 {[%clk 0:04:43.8]} 8. Re1 {[%clk 0:04:51.9]}
8... e5 {[%clk 0:04:28.7]} 9. a4 {[%clk 0:04:50.7]} 9... a5 {[%clk 0:04:25.2]}
10. h3 {[%clk 0:04:49.6]} 10... Qb6 {[%clk 0:04:24.1]} 11. Rb1 {[%clk
0:04:46.9]} 11... exd4 {[%clk 0:04:15.8]} 12. Nxd4 {[%clk 0:04:46.8]} 12... Re8
{[%clk 0:04:14.5]} 13. Be3 {[%clk 0:04:43.3]} 13... c5 {[%clk 0:04:01.8]} 14.
Ndb5 {[%clk 0:04:41.2]} 14... Bf8 {[%clk 0:03:54.7]} 15. g4 {[%clk 0:04:29.7]}
15... h5 {[%clk 0:03:51.8]} 16. g5 {[%clk 0:04:26.6]} 16... Nh7 {[%clk
0:03:44.9]} 17. Nd5 {[%clk 0:04:24.6]} 17... Qd8 {[%clk 0:03:42.5]} 18. Nbc7
{[%clk 0:04:16.6]} 18... Nxg5 {[%clk 0:03:39]} 19. Nxa8 {[%clk 0:04:15.1]} 19...
Ne5 {[%clk 0:03:37.8]} 20. h4 {[%clk 0:04:05.5]} 20... Bg4 {[%clk 0:03:32.5]}
21. Bxg5 {[%clk 0:03:58.5]} 21... Qxa8 {[%clk 0:03:31.2]} 22. Nf6+ {[%clk
0:03:54]} 22... Kh8 {[%clk 0:03:28.6]} 23. f3 {[%clk 0:03:52.8]} 1-0

[Event "Live Chess"]
[Site "Chess.com"]
[Date "2023.05.21"]
[Round "-"]
[White "chessfiction"]
[Black "FlyingChessKestrel13"]
[Result "1-0"]
[WhiteElo "2311"]
[BlackElo "2066"]
[TimeControl "300"]
[EndTime "7:30:10 PDT"]
[Termination "chessfiction won by resignation"]

1. e4 {[%clk 0:04:56.6]} 1... c5 {[%clk 0:04:58.6]} 2. d4 {[%clk 0:04:55.1]}
2... cxd4 {[%clk 0:04:57.4]} 3. c3 {[%clk 0:04:55]} 3... dxc3 {[%clk 0:04:56]}
4. Nxc3 {[%clk 0:04:54.9]} 4... e6 {[%clk 0:04:55.3]} 5. Nf3 {[%clk 0:04:53.5]}
5... d6 {[%clk 0:04:54.6]} 6. Bc4 {[%clk 0:04:50.5]} 6... Be7 {[%clk 0:04:52.9]}
7. O-O {[%clk 0:04:49.5]} 7... Nf6 {[%clk 0:04:51.9]} 8. Qe2 {[%clk 0:04:48.8]}
8... a6 {[%clk 0:04:51]} 9. Rd1 {[%clk 0:04:47.8]} 9... Qc7 {[%clk 0:04:50.2]}
10. Bf4 {[%clk 0:04:43.1]} 10... e5 {[%clk 0:04:48]} 11. Bg5 {[%clk 0:04:39.4]}
11... Be6 {[%clk 0:04:46.7]} 12. Nd5 {[%clk 0:04:36]} 12... Bxd5 {[%clk
0:04:45.3]} 13. exd5 {[%clk 0:04:34]} 13... O-O {[%clk 0:04:43.6]} 14. Rac1
{[%clk 0:04:31.9]} 14... Qd7 {[%clk 0:04:38.7]} 15. h3 {[%clk 0:04:26.5]} 15...
a5 {[%clk 0:04:37.5]} 16. Bd3 {[%clk 0:04:24.2]} 16... Na6 {[%clk 0:04:34.4]}
17. a3 {[%clk 0:04:22.1]} 17... Nc5 {[%clk 0:04:33.4]} 18. Bb1 {[%clk
0:04:20.9]} 18... a4 {[%clk 0:04:28.3]} 19. Rc4 {[%clk 0:04:11.4]} 19... b5
{[%clk 0:04:24.2]} 20. Rh4 {[%clk 0:04:03.8]} 20... h6 {[%clk 0:03:56.2]} 21.
Bxh6 {[%clk 0:04:01.2]} 21... gxh6 {[%clk 0:03:55.2]} 22. Rxh6 {[%clk
0:04:01.1]} 22... Kg7 {[%clk 0:03:51.5]} 23. Qe3 {[%clk 0:03:55.3]} 23... Rg8
{[%clk 0:03:42.2]} 24. Nh4 {[%clk 0:03:48]} 24... Kf8 {[%clk 0:03:38.4]} 25. Nf5
{[%clk 0:03:43.5]} 25... e4 {[%clk 0:03:30.3]} 26. Qf4 {[%clk 0:03:17.9]} 26...
Ke8 {[%clk 0:02:46.6]} 27. Nxe7 {[%clk 0:03:09.8]} 27... Qxe7 {[%clk 0:02:45.6]}
28. Rxf6 {[%clk 0:03:08]} 28... Rd8 {[%clk 0:02:39.9]} 29. Re1 {[%clk 0:03:05]}
29... Kf8 {[%clk 0:02:33.9]} 30. Bxe4 {[%clk 0:03:00.4]} 30... Rg7 {[%clk
0:01:35]} 31. Re3 {[%clk 0:02:50.6]} 31... Nxe4 {[%clk 0:01:27.6]} 32. Rxe4
{[%clk 0:02:48.8]} 32... Qc7 {[%clk 0:01:26.6]} 33. Qh6 {[%clk 0:02:42.5]} 33...
Kg8 {[%clk 0:01:22.9]} 34. Rh4 {[%clk 0:02:37.7]} 34... Kf8 {[%clk 0:01:17.3]}
35. Qf4 {[%clk 0:02:18.7]} 35... Rg8 {[%clk 0:01:02.2]} 36. Rh7 {[%clk
0:02:15.6]} 36... Rd7 {[%clk 0:01:01]} 37. Qh6+ {[%clk 0:02:06.6]} 37... Ke8
{[%clk 0:00:59.3]} 38. Rh8 {[%clk 0:01:57.4]} 38... Rxh8 {[%clk 0:00:55.8]} 39.
Qxh8+ {[%clk 0:01:57.3]} 39... Ke7 {[%clk 0:00:54.8]} 40. Rf3 {[%clk 0:01:48.1]}
40... Qc1+ {[%clk 0:00:47.2]} 41. Kh2 {[%clk 0:01:46.8]} 41... f5 {[%clk
0:00:40.5]} 42. Re3+ {[%clk 0:01:45.1]} 42... Kf7 {[%clk 0:00:39.3]} 43. Qh7+
{[%clk 0:01:43.3]} 1-0

[Event "Live Chess"]
[Site "Chess.com"]
[Date "2023.05.21"]
[Round "-"]
[White "LiamBellwood"]
[Black "jimwad"]
[Result "1-0"]
[WhiteElo "1907"]
[BlackElo "1221"]
[TimeControl "300"]
[EndTime "7:30:13 PDT"]
[Termination "LiamBellwood won by resignation"]

1. d4 {[%clk 0:04:59.2]} 1... d5 {[%clk 0:04:56.4]} 2. Nc3 {[%clk 0:04:58.9]}
2... Nf6 {[%clk 0:04:54.5]} 3. Bf4 {[%clk 0:04:58.4]} 3... Nc6 {[%clk
0:04:49.7]} 4. Nb5 {[%clk 0:04:57.1]} 4... e5 {[%clk 0:04:44.1]} 5. Bxe5 {[%clk
0:04:50.8]} 5... Nxe5 {[%clk 0:04:41.3]} 6. dxe5 {[%clk 0:04:50.7]} 6... Ne4
{[%clk 0:04:38]} 7. Qxd5 {[%clk 0:04:50.1]} 7... Qxd5 {[%clk 0:04:35.8]} 8.
Nxc7+ {[%clk 0:04:49.4]} 8... Kd8 {[%clk 0:04:31.8]} 9. Nxd5 {[%clk 0:04:49.3]}
9... Be6 {[%clk 0:04:27]} 10. O-O-O {[%clk 0:04:48.2]} 10... Bxd5 {[%clk
0:04:15]} 11. Rxd5+ {[%clk 0:04:48.1]} 11... Ke7 {[%clk 0:04:14]} 12. Nh3 {[%clk
0:04:39.4]} 12... Ke6 {[%clk 0:04:11.9]} 13. Nf4+ {[%clk 0:04:32.6]} 13... Kf5
{[%clk 0:04:04.9]} 14. e3 {[%clk 0:04:23.3]} 14... Nxf2 {[%clk 0:04:00.1]} 15.
Bd3+ {[%clk 0:04:18.5]} 15... Nxd3+ {[%clk 0:03:57.2]} 16. cxd3 {[%clk
0:04:12.9]} 16... Be7 {[%clk 0:03:55.7]} 17. e6+ {[%clk 0:04:05.3]} 17... Kf6
{[%clk 0:03:53.1]} 18. exf7 {[%clk 0:04:04.7]} 18... Kxf7 {[%clk 0:03:51.9]} 19.
Rd7 {[%clk 0:04:03.6]} 19... Rhe8 {[%clk 0:03:48.6]} 20. Rf1 {[%clk 0:04:02.1]}
20... Kg8 {[%clk 0:03:46.8]} 21. Nd5 {[%clk 0:03:57.5]} 21... Bg5 {[%clk
0:03:41]} 22. Rff7 {[%clk 0:03:46.8]} 22... Bh6 {[%clk 0:03:08.5]} 23. g4 {[%clk
0:03:21]} 23... Rac8+ {[%clk 0:03:03.9]} 24. Kd1 {[%clk 0:03:19.2]} 24... Rcd8
{[%clk 0:02:55.6]} 25. e4 {[%clk 0:03:03.5]} 25... Rxd7 {[%clk 0:02:53.6]} 26.
Rxd7 {[%clk 0:03:03.4]} 26... b6 {[%clk 0:02:41.8]} 27. Rxa7 {[%clk 0:02:59.2]}
27... b5 {[%clk 0:02:35.1]} 28. h4 {[%clk 0:02:57.9]} 28... g5 {[%clk
0:02:27.4]} 29. Nf6+ {[%clk 0:02:56.8]} 1-0

[Event "Live Chess"]
[Site "Chess.com"]
[Date "2023.05.21"]
[Round "-"]
[White "viktorskliarov"]
[Black "Tushinskiy"]
[Result "1-0"]
[WhiteElo "2646"]
[BlackElo "2202"]
[TimeControl "300"]
[EndTime "7:30:29 PDT"]
[Termination "viktorskliarov won by resignation"]

1. e4 {[%clk 0:04:57.5]} 1... e5 {[%clk 0:04:58.6]} 2. Nc3 {[%clk 0:04:54.2]}
2... d6 {[%clk 0:04:58.5]} 3. Bc4 {[%clk 0:04:51.6]} 3... Nf6 {[%clk 0:04:55.4]}
4. d3 {[%clk 0:04:50.2]} 4... Be7 {[%clk 0:04:54]} 5. f4 {[%clk 0:04:48.1]} 5...
Bg4 {[%clk 0:04:51.8]} 6. Nf3 {[%clk 0:04:42]} 6... Nbd7 {[%clk 0:04:44.7]} 7.
h3 {[%clk 0:04:35.9]} 7... Bxf3 {[%clk 0:04:42.9]} 8. Qxf3 {[%clk 0:04:34.3]}
8... c6 {[%clk 0:04:42.8]} 9. O-O {[%clk 0:04:30.4]} 9... b5 {[%clk 0:04:20.3]}
10. Bb3 {[%clk 0:04:25.2]} 10... a5 {[%clk 0:04:16.5]} 11. a3 {[%clk 0:04:19.1]}
11... O-O {[%clk 0:04:13.9]} 12. Be3 {[%clk 0:04:03.3]} 12... b4 {[%clk
0:04:06.6]} 13. axb4 {[%clk 0:04:00]} 13... axb4 {[%clk 0:04:06.5]} 14. Ne2
{[%clk 0:03:58.9]} 14... Rxa1 {[%clk 0:04:03.6]} 15. Rxa1 {[%clk 0:03:57]} 15...
d5 {[%clk 0:04:03.5]} 16. exd5 {[%clk 0:03:32.9]} 16... cxd5 {[%clk 0:04:00.7]}
17. Bxd5 {[%clk 0:03:31.6]} 17... Nc5 {[%clk 0:03:58.2]} 18. Bc4 {[%clk
0:03:21.7]} 18... e4 {[%clk 0:03:55.2]} 19. dxe4 {[%clk 0:03:20.6]} 19... Ncxe4
{[%clk 0:03:55.1]} 20. Bd3 {[%clk 0:03:04.4]} 20... Nc5 {[%clk 0:03:47.8]} 21.
Bxc5 {[%clk 0:03:03]} 21... Bxc5+ {[%clk 0:03:45.9]} 22. Kh2 {[%clk 0:03:02.4]}
22... Re8 {[%clk 0:03:44.9]} 23. Ng3 {[%clk 0:02:53]} 23... g6 {[%clk
0:03:38.3]} 24. Bb5 {[%clk 0:02:43.2]} 24... Re3 {[%clk 0:03:35.9]} 25. Ra8
{[%clk 0:02:39.7]} 25... Qxa8 {[%clk 0:03:24.9]} 26. Qxa8+ {[%clk 0:02:37.4]}
26... Kg7 {[%clk 0:03:24.8]} 27. Qc6 {[%clk 0:02:03.3]} 27... Bd4 {[%clk
0:03:20.1]} 28. Qc4 {[%clk 0:02:01.7]} 28... Bxb2 {[%clk 0:03:16.3]} 29. Qxb4
{[%clk 0:02:00.7]} 29... Bc1 {[%clk 0:03:14.7]} 30. Bc6 {[%clk 0:01:53.2]} 30...
h5 {[%clk 0:03:13]} 31. Nf1 {[%clk 0:01:39.8]} 31... Re6 {[%clk 0:03:09.5]} 32.
Bf3 {[%clk 0:01:35.7]} 32... Ra6 {[%clk 0:02:59.6]} 33. g3 {[%clk 0:01:27.6]}
33... Ra2 {[%clk 0:02:48.7]} 34. Qc4 {[%clk 0:01:24.7]} 34... Ra1 {[%clk
0:02:45.6]} 35. h4 {[%clk 0:01:23.1]} 35... Ra3 {[%clk 0:02:36.4]} 36. Kg2
{[%clk 0:01:21.4]} 36... Ra7 {[%clk 0:02:23.8]} 37. Qb4 {[%clk 0:01:17.6]} 37...
Rd7 {[%clk 0:02:18.8]} 38. c4 {[%clk 0:01:14.9]} 38... Ra7 {[%clk 0:02:08.7]}
39. c5 {[%clk 0:01:12.3]} 39... Ba3 {[%clk 0:02:07.7]} 40. Qc3 {[%clk
0:01:07.6]} 40... Bxc5 {[%clk 0:01:54.3]} 41. Qxc5 {[%clk 0:01:06.1]} 41... Ra2+
{[%clk 0:01:53.7]} 42. Kg1 {[%clk 0:01:05.4]} 42... Ng8 {[%clk 0:01:50]} 43.
Qd4+ {[%clk 0:01:03.3]} 43... Kh7 {[%clk 0:01:48.6]} 44. Bd5 {[%clk 0:01:01.9]}
44... Ra6 {[%clk 0:01:42.4]} 45. Bxf7 {[%clk 0:01:00.6]} 45... Nh6 {[%clk
0:01:41]} 46. Bc4 {[%clk 0:00:58.7]} 46... Ra8 {[%clk 0:01:27.8]} 47. Qd7+
{[%clk 0:00:56.9]} 47... Kh8 {[%clk 0:01:27]} 48. Ne3 {[%clk 0:00:53.4]} 48...
Ra1+ {[%clk 0:01:22.4]} 49. Kf2 {[%clk 0:00:52.4]} 49... Ra3 {[%clk 0:01:19]}
50. Qe8+ {[%clk 0:00:49.4]} 50... Kh7 {[%clk 0:01:17.9]} 51. Qe7+ {[%clk
0:00:48.7]} 51... Kh8 {[%clk 0:01:17.8]} 52. Qxa3 {[%clk 0:00:48.2]} 1-0

[Event "Live Chess"]
[Site "Chess.com"]
[Date "2023.05.21"]
[Round "-"]
[White "Doge_Dandolo"]
[Black "educatedlad"]
[Result "1/2-1/2"]
[WhiteElo "1871"]
[BlackElo "1627"]
[TimeControl "300"]
[EndTime "7:30:37 PDT"]
[Termination "Game drawn by repetition"]

1. Nf3 {[%clk 0:04:55.6]} 1... d5 {[%clk 0:04:57.7]} 2. c4 {[%clk 0:04:49.2]}
2... c6 {[%clk 0:04:54.3]} 3. g3 {[%clk 0:04:44.9]} 3... g6 {[%clk 0:04:52.5]}
4. Qa4 {[%clk 0:04:18.9]} 4... Bd7 {[%clk 0:04:44.7]} 5. Qc2 {[%clk 0:04:10.2]}
5... Bf5 {[%clk 0:04:42]} 6. d3 {[%clk 0:04:08.1]} 6... Bg7 {[%clk 0:04:37]} 7.
Bg2 {[%clk 0:04:03.9]} 7... Nd7 {[%clk 0:04:32.9]} 8. O-O {[%clk 0:03:56.1]}
8... Rc8 {[%clk 0:04:31.8]} 9. Nbd2 {[%clk 0:03:39.5]} 9... Nb6 {[%clk
0:04:30.8]} 10. Rb1 {[%clk 0:03:36.6]} 10... e5 {[%clk 0:04:23]} 11. e4 {[%clk
0:03:19.2]} 11... dxe4 {[%clk 0:04:17.7]} 12. dxe4 {[%clk 0:03:15.4]} 12... Be6
{[%clk 0:04:13.8]} 13. c5 {[%clk 0:03:10.9]} 13... Nd7 {[%clk 0:04:10.1]} 14. b4
{[%clk 0:03:06.8]} 14... a6 {[%clk 0:04:08.1]} 15. Rd1 {[%clk 0:03:04.6]} 15...
Ne7 {[%clk 0:04:06.5]} 16. Ng5 {[%clk 0:03:01]} 16... O-O {[%clk 0:03:57.1]} 17.
Nxe6 {[%clk 0:02:59.7]} 17... fxe6 {[%clk 0:03:56.4]} 18. Nc4 {[%clk 0:02:58.8]}
18... Qc7 {[%clk 0:03:43.4]} 19. Nd6 {[%clk 0:02:53.7]} 19... Rcd8 {[%clk
0:03:38.5]} 20. Rb3 {[%clk 0:02:51.5]} 20... Nc8 {[%clk 0:03:34.3]} 21. Rbd3
{[%clk 0:02:49.8]} 21... Nxd6 {[%clk 0:03:33.3]} 22. Rxd6 {[%clk 0:02:47.3]}
22... Nf6 {[%clk 0:03:30.8]} 23. Qc4 {[%clk 0:02:44]} 23... Rxd6 {[%clk
0:03:22.1]} 24. Rxd6 {[%clk 0:02:41.9]} 24... Re8 {[%clk 0:03:12.3]} 25. Bg5
{[%clk 0:02:34.1]} 25... Kh8 {[%clk 0:03:00.9]} 26. Bxf6 {[%clk 0:02:30.7]}
26... Bxf6 {[%clk 0:02:58.8]} 27. Rxe6 {[%clk 0:02:22.8]} 27... Rxe6 {[%clk
0:02:57.2]} 28. Qxe6 {[%clk 0:02:20.9]} 28... Kg7 {[%clk 0:02:56.7]} 29. Bh3
{[%clk 0:02:14.5]} 29... Qd8 {[%clk 0:02:52.1]} 30. Kg2 {[%clk 0:02:11]} 30...
Qd3 {[%clk 0:02:46.8]} 31. Qc8 {[%clk 0:02:06.8]} 31... Qxe4+ {[%clk 0:02:44.9]}
32. Kg1 {[%clk 0:02:03.2]} 32... Qe1+ {[%clk 0:02:43.6]} 33. Bf1 {[%clk
0:02:02]} 33... Qxb4 {[%clk 0:02:42.1]} 34. Qd7+ {[%clk 0:02:00.8]} 34... Kh6
{[%clk 0:02:40.4]} 35. Qh3+ {[%clk 0:01:59.4]} 35... Kg7 {[%clk 0:02:38.8]} 36.
Qd7+ {[%clk 0:01:57.8]} 36... Kh6 {[%clk 0:02:38]} 37. Qh3+ {[%clk 0:01:56.5]}
37... Kg7 {[%clk 0:02:37.5]} 38. Qd7+ {[%clk 0:01:55.4]} 1/2-1/2

[Event "Live Chess"]
[Site "Chess.com"]
[Date "2023.05.21"]
[Round "-"]
[White "robotking06"]
[Black "TheSmoulderingMaster"]
[Result "0-1"]
[WhiteElo "308"]
[BlackElo "1656"]
[TimeControl "300"]
[EndTime "7:30:48 PDT"]
[Termination "TheSmoulderingMaster won by resignation"]

1. Nf3 {[%clk 0:04:38.2]} 1... d5 {[%clk 0:04:58.6]} 2. g3 {[%clk 0:04:37.3]}
2... c5 {[%clk 0:04:57.3]} 3. Bg2 {[%clk 0:04:36.6]} 3... Nc6 {[%clk 0:04:56.6]}
4. Nc3 {[%clk 0:04:27]} 4... Nf6 {[%clk 0:04:55.6]} 5. d3 {[%clk 0:04:25.1]}
5... e5 {[%clk 0:04:54.3]} 6. Bg5 {[%clk 0:04:24.1]} 6... Be7 {[%clk 0:04:52.3]}
7. Bf4 {[%clk 0:04:02.5]} 7... exf4 {[%clk 0:04:50.1]} 8. Ne5 {[%clk 0:04:00.2]}
8... Nxe5 {[%clk 0:04:48.4]} 9. Nxd5 {[%clk 0:03:58.9]} 9... Nxd5 {[%clk
0:04:46.8]} 10. Qd2 {[%clk 0:03:58]} 10... f3 {[%clk 0:04:43.2]} 11. Qb4 {[%clk
0:03:54.7]} 11... Nxb4 {[%clk 0:04:39.9]} 12. Kd2 {[%clk 0:03:50.8]} 12... fxg2
{[%clk 0:04:38.4]} 13. h4 {[%clk 0:03:41.6]} 13... gxh1=Q {[%clk 0:04:36.3]} 14.
Rg1 {[%clk 0:03:39.5]} 14... Qxg1 {[%clk 0:04:34.1]} 15. Ke3 {[%clk 0:03:37.6]}
15... Nd5+ {[%clk 0:04:30.7]} 16. Kd2 {[%clk 0:03:35.7]} 16... Qxf2 {[%clk
0:04:28]} 17. g4 {[%clk 0:03:33.9]} 17... Qe3+ {[%clk 0:04:26.6]} 0-1

[Event "Live Chess"]
[Site "Chess.com"]
[Date "2023.05.21"]
[Round "-"]
[White "WilliamofOrange16th"]
[Black "domrobson"]
[Result "1/2-1/2"]
[WhiteElo "1855"]
[BlackElo "1747"]
[TimeControl "300"]
[EndTime "7:31:08 PDT"]
[Termination "Game drawn by agreement"]

1. e4 {[%clk 0:04:57.7]} 1... e5 {[%clk 0:04:59.5]} 2. Nf3 {[%clk 0:04:56.4]}
2... Nc6 {[%clk 0:04:57.9]} 3. Bc4 {[%clk 0:04:55.5]} 3... Nf6 {[%clk
0:04:57.2]} 4. d4 {[%clk 0:04:53.3]} 4... exd4 {[%clk 0:04:55.7]} 5. O-O {[%clk
0:04:52.4]} 5... Nxe4 {[%clk 0:04:54.6]} 6. Re1 {[%clk 0:04:50.9]} 6... d5
{[%clk 0:04:54.3]} 7. Bxd5 {[%clk 0:04:50.2]} 7... Qxd5 {[%clk 0:04:53.9]} 8.
Nc3 {[%clk 0:04:49.5]} 8... Qh5 {[%clk 0:04:53.4]} 9. Nxe4 {[%clk 0:04:47.6]}
9... Be6 {[%clk 0:04:52.1]} 10. Bg5 {[%clk 0:04:46]} 10... Bd6 {[%clk
0:04:41.1]} 11. Nxd6+ {[%clk 0:03:42.6]} 11... cxd6 {[%clk 0:04:39.6]} 12. Bf4
{[%clk 0:03:39]} 12... O-O-O {[%clk 0:04:35.1]} 13. Nxd4 {[%clk 0:03:34.5]}
13... Qxd1 {[%clk 0:04:33.4]} 14. Raxd1 {[%clk 0:03:34.4]} 14... Nxd4 {[%clk
0:04:31.7]} 15. Rxd4 {[%clk 0:03:34.3]} 15... d5 {[%clk 0:04:24.5]} 16. Be5
{[%clk 0:03:31.6]} 16... Rhg8 {[%clk 0:04:21.5]} 17. Red1 {[%clk 0:03:22.3]}
17... b5 {[%clk 0:04:18.9]} 18. b3 {[%clk 0:03:20.8]} 18... Kb7 {[%clk
0:04:16.2]} 19. a4 {[%clk 0:03:19.9]} 19... a6 {[%clk 0:04:14.8]} 20. axb5
{[%clk 0:03:18.8]} 20... axb5 {[%clk 0:04:14.3]} 21. Rb1 {[%clk 0:03:14.5]}
21... Rc8 {[%clk 0:04:12.9]} 22. Rb2 {[%clk 0:03:02.2]} 22... Rc6 {[%clk
0:04:07.3]} 23. c3 {[%clk 0:02:59.3]} 23... Rgc8 {[%clk 0:04:05.3]} 24. Rh4
{[%clk 0:02:54.7]} 24... f6 {[%clk 0:03:45]} 25. Bd4 {[%clk 0:02:53.1]} 25... h6
{[%clk 0:03:41.4]} 26. Rf4 {[%clk 0:02:49.8]} 26... Ra6 {[%clk 0:03:36.5]} 27.
h3 {[%clk 0:02:43.3]} 27... Ra1+ {[%clk 0:03:34.7]} 28. Kh2 {[%clk 0:02:42.5]}
28... Ra3 {[%clk 0:03:30.5]} 29. Rf3 {[%clk 0:02:39.8]} 29... Rca8 {[%clk
0:03:28.3]} 30. g4 {[%clk 0:02:35.1]} 30... Ra2 {[%clk 0:03:26.1]} 31. Rxa2
{[%clk 0:02:32.9]} 31... Rxa2 {[%clk 0:03:24.1]} 32. Re3 {[%clk 0:02:32.8]}
32... Ra6 {[%clk 0:03:23.2]} 33. Kg3 {[%clk 0:02:29.9]} 33... Kc8 {[%clk
0:03:22]} 34. f4 {[%clk 0:02:28.3]} 34... Kd7 {[%clk 0:03:21.2]} 35. f5 {[%clk
0:02:27.4]} 35... Bf7 {[%clk 0:03:20.6]} 36. b4 {[%clk 0:02:21.8]} 36... Ra8
{[%clk 0:03:15.3]} 37. Bc5 {[%clk 0:02:21]} 37... Re8 {[%clk 0:03:13]} 38. Kf3
{[%clk 0:02:04.4]} 38... Rxe3+ {[%clk 0:03:11]} 39. Kxe3 {[%clk 0:02:04.3]}
39... g6 {[%clk 0:03:08.9]} 40. Bf8 {[%clk 0:01:58.9]} 40... h5 {[%clk
0:03:06.3]} 41. fxg6 {[%clk 0:01:43.1]} 41... Bxg6 {[%clk 0:03:04.1]} 42. Kf4
{[%clk 0:01:40.3]} 42... hxg4 {[%clk 0:03:00.8]} 43. Kxg4 {[%clk 0:01:38.7]}
43... Ke6 {[%clk 0:03:00]} 44. h4 {[%clk 0:01:34.3]} 44... Kf7 {[%clk
0:02:57.9]} 45. Bc5 {[%clk 0:01:32.4]} 45... Bd3 {[%clk 0:02:55.1]} 46. Bd4
{[%clk 0:01:23.6]} 46... Kg6 {[%clk 0:02:48.9]} 47. h5+ {[%clk 0:01:17.7]} 47...
Kg7 {[%clk 0:02:46]} 48. Be3 {[%clk 0:01:13.9]} 48... f5+ {[%clk 0:02:41.1]} 49.
Kg5 {[%clk 0:01:11.6]} 49... Kh7 {[%clk 0:02:39.8]} 50. Bf4 {[%clk 0:01:07.2]}
50... Bc2 {[%clk 0:02:38.5]} 51. Kf6 {[%clk 0:01:05.9]} 51... Bd1 {[%clk
0:02:32.8]} 52. Ke5 {[%clk 0:01:04.6]} 52... Bxh5 {[%clk 0:02:29.2]} 53. Kxf5
{[%clk 0:01:00.3]} 53... Be2 {[%clk 0:02:28]} 54. Ke5 {[%clk 0:00:58.8]} 54...
Bc4 {[%clk 0:02:27.9]} 55. Kd4 {[%clk 0:00:56.6]} 55... Kg6 {[%clk 0:02:26.7]}
56. Bd6 {[%clk 0:00:52.1]} 1/2-1/2